[Event "World Women Teams  Championship"]
[Site "Sitges, Spain"]
[Date "2021.09.28"]
[Round "4.3"]
[White "Kulon, Klaudia"]
[Black "Javakhishvili, Lela"]
[Result "1-0"]
[TimeControl "40+10"]
[WhiteElo "2234"]
[BlackElo "2364"]

1. d4 {[%clk 00:45:18]} {[%emt 00:00:02]} d5 {[%clk 00:45:14]} {[%emt
00:00:07]} 2. Bf4 {[%clk 00:45:23]} {[%emt 00:00:04]} Nf6 {[%clk 00:45:12]}
{[%emt 00:00:12]} 3. Nf3 {[%clk 00:45:29]} {[%emt 00:00:04]} c5 {[%clk
00:45:03]} {[%emt 00:00:19]} 4. e3 {[%clk 00:45:35]} {[%emt 00:00:04]} Nc6
{[%clk 00:45:09]} {[%emt 00:00:04]} 5. Nbd2 {[%clk 00:45:33]} {[%emt 00:00:13]}
e6 {[%clk 00:43:33]} {[%emt 00:01:46]} 6. c3 {[%clk 00:45:37]} {[%emt
00:00:05]} cxd4 {[%clk 00:43:18]} {[%emt 00:00:25]} 7. exd4 {[%clk 00:45:24]}
{[%emt 00:00:24]} Nh5 {[%clk 00:43:25]} {[%emt 00:00:02]} 8. Bg3 {[%clk
00:45:05]} {[%emt 00:00:29]} g6 {[%emt 00:02:50]} 9. Bb5 {[%clk 00:43:32]} Bd7
{[%clk 00:42:02]} {[%emt 00:00:36]} 10. O-O {[%clk 00:42:56]} {[%emt 00:00:47]}
Nxg3 {[%clk 00:42:05]} {[%emt 00:00:07]} 11. hxg3 {[%clk 00:42:28]} {[%emt
00:00:38]} Bg7 {[%clk 00:41:22]} {[%emt 00:00:52]} 12. Re1 {[%clk 00:42:17]}
{[%emt 00:00:22]} O-O {[%clk 00:41:15]} {[%emt 00:00:17]} 13. Bxc6 {[%clk
00:41:06]} {[%emt 00:01:21]} Bxc6 {[%clk 00:41:19]} {[%emt 00:00:05]} 14. Ne5
{[%clk 00:41:11]} {[%emt 00:00:05]} Be8 {[%clk 00:41:25]} {[%emt 00:00:05]} 15.
Qb3 {[%clk 00:39:53]} {[%emt 00:01:27]} b6 {[%clk 00:40:15]} {[%emt 00:01:20]}
16. f4 {[%clk 00:39:09]} {[%emt 00:00:54]} Rc8 {[%clk 00:39:42]} {[%emt
00:00:43]} 17. a4 {[%clk 00:38:06]} {[%emt 00:01:13]} a5 {[%clk 00:37:56]}
{[%emt 00:01:57]} 18. Ndf3 {[%clk 00:37:16]} {[%emt 00:00:59]} Qd6 {[%clk
00:37:07]} {[%emt 00:00:58]} 19. Qa3 {[%clk 00:33:39]} {[%emt 00:03:48]} Qxa3
{[%clk 00:37:14]} {[%emt 00:00:02]} 20. Rxa3 {[%clk 00:33:48]} {[%emt
00:00:01]} f6 {[%clk 00:36:55]} {[%emt 00:00:30]} 21. Nd3 {[%clk 00:33:52]}
{[%emt 00:00:04]} Bd7 {[%clk 00:37:03]} {[%emt 00:00:03]} 22. g4 {[%clk
00:31:57]} {[%emt 00:02:05]} Rfd8 {[%clk 00:26:51]} {[%emt 00:10:22]} 23. g5
{[%clk 00:30:21]} {[%emt 00:01:46]} f5 {[%clk 00:26:59]} {[%emt 00:00:02]} 24.
Nfe5 {[%clk 00:30:05]} {[%emt 00:00:26]} Be8 {[%clk 00:26:55]} {[%emt
00:00:15]} 25. Kf2 {[%clk 00:29:10]} {[%emt 00:01:05]} Bf8 {[%clk 00:27:00]}
{[%emt 00:00:05]} 26. Raa1 {[%clk 00:28:44]} {[%emt 00:00:36]} Rc7 {[%clk
00:26:44]} {[%emt 00:00:26]} 27. Ke2 {[%clk 00:26:35]} {[%emt 00:02:19]} Rb8
{[%clk 00:26:08]} {[%emt 00:00:46]} 28. Kd2 {[%clk 00:25:14]} {[%emt 00:01:31]}
Bd6 {[%clk 00:25:55]} {[%emt 00:00:23]} 29. Nf3 {[%clk 00:23:12]} {[%emt
00:02:12]} Bd7 {[%clk 00:25:29]} {[%emt 00:00:37]} 30. Nfe5 {[%clk 00:22:25]}
{[%emt 00:00:56]} Be8 {[%clk 00:25:10]} {[%emt 00:00:29]} 31. Rec1 {[%clk
00:20:31]} {[%emt 00:02:04]} Bf8 {[%clk 00:24:02]} {[%emt 00:01:18]} 32. b4
{[%clk 00:17:43]} {[%emt 00:02:58]} Rbc8 {[%clk 00:20:32]} {[%emt 00:03:40]} 33.
b5 {[%clk 00:17:25]} {[%emt 00:00:29]} Bd6 {[%clk 00:19:28]} {[%emt 00:01:14]}
34. Ra2 {[%clk 00:17:07]} {[%emt 00:00:28]} Kg7 {[%clk 00:19:14]} {[%emt
00:00:24]} 35. Rac2 {[%clk 00:16:54]} {[%emt 00:00:23]} Ba3 {[%clk 00:19:21]}
{[%emt 00:00:03]} 36. Rh1 {[%clk 00:16:36]} {[%emt 00:00:27]} Kg8 {[%clk
00:19:09]} {[%emt 00:00:22]} 37. Rb1 {[%clk 00:15:47]} {[%emt 00:00:58]} Bf8
{[%clk 00:18:46]} {[%emt 00:00:34]} 38. Re1 {[%clk 00:12:08]} {[%emt 00:03:49]}
Ba3 {[%clk 00:18:00]} {[%emt 00:00:57]} 39. Rb1 {[%clk 00:12:03]} {[%emt
00:00:14]} Bf8 {[%clk 00:18:07]} {[%emt 00:00:03]} 40. Nc6 {[%clk 00:12:08]}
{[%emt 00:00:05]} Bxc6 {[%clk 00:17:23]} {[%emt 00:00:54]} 41. bxc6 {[%clk
00:12:17]} {[%emt 00:00:01]} Rxc6 {[%clk 00:17:31]} {[%emt 00:00:02]} 42. Ne5
{[%clk 00:12:26]} Rd6 {[%clk 00:11:02]} {[%emt 00:06:39]} 43. Rcb2 {[%clk
00:12:10]} {[%emt 00:00:26]} Rb8 {[%clk 00:11:03]} {[%emt 00:00:09]} 44. Rb5
{[%clk 00:12:14]} {[%emt 00:00:06]} h6 {[%clk 00:10:49]} {[%emt 00:00:24]} 45.
Nxg6 {[%clk 00:11:01]} {[%emt 00:01:23]} hxg5 {[%clk 00:10:56]} {[%emt
00:00:03]} 46. fxg5 {[%clk 00:10:57]} {[%emt 00:00:14]} Kg7 {[%clk 00:10:21]}
{[%emt 00:00:45]} 47. Ne5 {[%clk 00:10:07]} {[%emt 00:01:00]} Be7 {[%clk
00:10:25]} {[%emt 00:00:06]} 48. Rxa5 {[%clk 00:09:30]} {[%emt 00:00:48]} Bxg5+
{[%clk 00:10:31]} {[%emt 00:00:03]} 49. Kd3 {[%clk 00:09:39]} Rb7 {[%clk
00:09:12]} {[%emt 00:01:30]} 50. Ra8 {[%clk 00:09:43]} {[%emt 00:00:06]} Bf6
{[%clk 00:06:07]} {[%emt 00:03:15]} 51. a5 {[%clk 00:09:13]} {[%emt 00:00:40]}
Bxe5 {[%clk 00:06:13]} {[%emt 00:00:05]} 52. dxe5 {[%clk 00:09:21]} {[%emt
00:00:01]} Rc6 {[%clk 00:06:22]} 53. a6 {[%clk 00:08:52]} {[%emt 00:00:40]}
Rbc7 {[%clk 00:06:30]} {[%emt 00:00:01]} 54. Rb3 {[%clk 00:09:01]} {[%emt
00:00:01]} b5 {[%clk 00:06:12]} {[%emt 00:00:29]} 55. Ra3 {[%clk 00:08:44]}
{[%emt 00:00:26]} d4 {[%clk 00:05:18]} {[%emt 00:01:03]} 56. Kxd4 {[%clk
00:05:37]} {[%emt 00:03:18]} Rc4+ {[%clk 00:04:10]} {[%emt 00:01:18]} 57. Kd3
{[%clk 00:04:28]} {[%emt 00:01:19]} Rd7+ {[%clk 00:04:19]} 58. Kc2 {[%clk
00:04:24]} {[%emt 00:00:14]} b4 {[%clk 00:03:50]} {[%emt 00:00:39]} 59. Rb3
{[%clk 00:04:31]} {[%emt 00:00:03]} bxc3 {[%clk 00:03:46]} {[%emt 00:00:14]} 60.
Rb7 {[%clk 00:04:25]} {[%emt 00:00:16]} Rcc7 {[%clk 00:03:38]} {[%emt
00:00:18]} 61. Raa7 {[%clk 00:04:24]} {[%emt 00:00:12]} Rd2+ {[%clk 00:03:36]}
{[%emt 00:00:11]} 62. Kc1 {[%clk 00:04:33]} {[%emt 00:00:02]} Rxb7 {[%clk
00:03:40]} {[%emt 00:00:05]} 63. axb7 {[%clk 00:04:40]} {[%emt 00:00:02]} 1-0

[Event "World Women Teams  Championship"]
[Site "Sitges, Spain"]
[Date "2021.09.28"]
[Round "4.4"]
[White "Melia, Salome"]
[Black "Kubicka, Anna"]
[Result "1-0"]
[TimeControl "40+10"]
[WhiteElo "2271"]
[BlackElo "2032"]

1. e4 {[%clk 00:45:17]} {[%emt 00:00:02]} c6 {[%clk 00:45:15]} {[%emt
00:00:06]} 2. d4 {[%clk 00:45:23]} {[%emt 00:00:04]} d5 {[%clk 00:45:22]}
{[%emt 00:00:03]} 3. e5 {[%clk 00:45:30]} {[%emt 00:00:03]} Bf5 {[%clk
00:45:28]} {[%emt 00:00:03]} 4. h4 {[%clk 00:44:52]} {[%emt 00:00:49]} h5
{[%clk 00:45:31]} {[%emt 00:00:07]} 5. Bd3 {[%clk 00:44:52]} {[%emt 00:00:10]}
Bxd3 {[%clk 00:45:36]} {[%emt 00:00:04]} 6. Qxd3 {[%clk 00:45:01]} {[%emt
00:00:02]} e6 {[%clk 00:45:41]} {[%emt 00:00:06]} 7. Nf3 {[%clk 00:44:57]}
{[%emt 00:00:13]} Be7 {[%clk 00:44:28]} {[%emt 00:01:23]} 8. Bg5 {[%clk
00:41:28]} {[%emt 00:03:55]} Nh6 {[%clk 00:44:08]} {[%emt 00:00:13]} 9. Nbd2
{[%clk 00:37:46]} {[%emt 00:03:54]} Nf5 {[%clk 00:42:18]} {[%emt 00:02:00]} 10.
Nf1 {[%clk 00:36:44]} {[%emt 00:01:12]} Nd7 {[%clk 00:24:13]} {[%emt 00:18:16]}
11. Ne3 {[%clk 00:34:45]} {[%emt 00:02:07]} Nxe3 {[%clk 00:24:10]} {[%emt
00:00:13]} 12. fxe3 {[%clk 00:34:30]} {[%emt 00:00:26]} g6 {[%clk 00:22:54]}
{[%emt 00:01:26]} 13. O-O {[%clk 00:28:08]} {[%emt 00:06:32]} Nb6 {[%clk
00:18:54]} {[%emt 00:04:10]} 14. Bxe7 {[%clk 00:24:48]} {[%emt 00:03:30]} Qxe7
{[%clk 00:16:53]} {[%emt 00:02:11]} 15. Ng5 {[%clk 00:24:55]} {[%emt 00:00:02]}
O-O {[%clk 00:12:55]} {[%emt 00:04:09]} 16. Rf4 {[%clk 00:22:41]} {[%emt
00:02:23]} Nd7 {[%clk 00:04:00]} {[%emt 00:09:04]} 17. Raf1 {[%clk 00:22:12]}
{[%emt 00:00:40]} Rae8 {[%clk 00:03:45]} {[%emt 00:00:26]} 18. Nxf7 {[%clk
00:16:10]} {[%emt 00:06:12]} Rxf7 {[%clk 00:03:31]} {[%emt 00:00:24]} 19. Rxf7
{[%clk 00:16:14]} {[%emt 00:00:06]} Qxf7 {[%clk 00:03:32]} {[%emt 00:00:08]} 20.
Rxf7 {[%clk 00:16:22]} {[%emt 00:00:03]} Kxf7 {[%clk 00:03:41]} {[%emt
00:00:01]} 21. Qa3 {[%clk 00:16:21]} {[%emt 00:00:11]} a6 {[%clk 00:01:54]}
{[%emt 00:01:57]} 22. Qb4 {[%clk 00:16:20]} {[%emt 00:00:11]} Re7 {[%clk
00:00:23]} {[%emt 00:01:42]} 23. Qxb7 {[%clk 00:16:14]} {[%emt 00:00:16]} Nxe5
{[%clk 00:00:31]} {[%emt 00:00:02]} 24. Qxa6 {[%clk 00:14:54]} {[%emt
00:01:30]} Nc4 {[%clk 00:00:36]} {[%emt 00:00:04]} 25. b3 {[%clk 00:14:15]}
{[%emt 00:00:49]} Nxe3 {[%clk 00:00:43]} {[%emt 00:00:04]} 26. Qxc6 {[%clk
00:14:02]} {[%emt 00:00:23]} e5 {[%clk 00:00:35]} {[%emt 00:00:18]} 27. dxe5
{[%clk 00:10:09]} {[%emt 00:04:03]} Rxe5 {[%clk 00:00:43]} {[%emt 00:00:01]} 28.
Qc7+ {[%clk 00:10:16]} {[%emt 00:00:03]} Kf6 {[%clk 00:00:42]} {[%emt
00:00:11]} 29. Qd8+ {[%clk 00:07:16]} {[%emt 00:03:09]} Ke6 {[%clk 00:00:24]}
{[%emt 00:00:28]} 30. a4 {[%clk 00:04:46]} {[%emt 00:02:41]} Ng4 {[%clk
00:00:30]} {[%emt 00:00:04]} 31. Qc8+ {[%clk 00:04:38]} {[%emt 00:00:18]} Kf6
{[%clk 00:00:23]} {[%emt 00:00:17]} 32. Qc3 {[%clk 00:04:38]} {[%emt 00:00:09]}
Kf5 {[%clk 00:00:26]} {[%emt 00:00:08]} 33. a5 {[%clk 00:04:27]} {[%emt
00:00:21]} Re3 {[%clk 00:00:19]} {[%emt 00:00:17]} 34. Qd2 {[%clk 00:04:14]}
{[%emt 00:00:22]} Re6 {[%clk 00:00:13]} {[%emt 00:00:17]} 35. a6 {[%clk
00:04:10]} {[%emt 00:00:14]} Ke5 {[%clk 00:00:17]} {[%emt 00:00:06]} 36. a7
{[%clk 00:04:11]} {[%emt 00:00:09]} Ra6 {[%clk 00:00:26]} {[%emt 00:00:01]} 37.
Qe2+ {[%clk 00:04:17]} {[%emt 00:00:04]} 1-0

[Event "World Women Teams  Championship"]
[Site "Sitges, Spain"]
[Date "2021.09.28"]
[Round "4.5"]
[White "Muzychuk, Anna"]
[Black "Abdumalik, Zhansaya"]
[Result "1-0"]
[TimeControl "40+10"]
[WhiteElo "2537"]
[BlackElo "2444"]

1. e4 {[%clk 00:45:18]} {[%emt 00:00:01]} e5 {[%clk 00:45:17]} {[%emt
00:00:02]} 2. Nf3 {[%clk 00:45:27]} {[%emt 00:00:03]} Nc6 {[%clk 00:45:25]}
{[%emt 00:00:02]} 3. Bb5 {[%clk 00:45:34]} {[%emt 00:00:02]} Nf6 {[%clk
00:45:33]} {[%emt 00:00:02]} 4. O-O {[%clk 00:45:27]} {[%emt 00:00:17]} Nxe4
{[%clk 00:45:38]} {[%emt 00:00:05]} 5. d4 {[%clk 00:45:34]} {[%emt 00:00:03]}
Nd6 {[%clk 00:45:39]} {[%emt 00:00:09]} 6. Bxc6 {[%clk 00:45:40]} {[%emt
00:00:04]} dxc6 {[%clk 00:45:47]} {[%emt 00:00:02]} 7. dxe5 {[%clk 00:45:49]}
{[%emt 00:00:02]} Nf5 {[%clk 00:45:51]} {[%emt 00:00:05]} 8. Qxd8+ {[%clk
00:45:49]} {[%emt 00:00:10]} Kxd8 {[%clk 00:46:00]} {[%emt 00:00:01]} 9. h3
{[%clk 00:45:41]} {[%emt 00:00:20]} Ke8 {[%clk 00:45:42]} {[%emt 00:00:26]} 10.
Nc3 {[%clk 00:44:56]} {[%emt 00:00:55]} h5 {[%clk 00:45:01]} {[%emt 00:00:51]}
11. Bf4 {[%clk 00:44:20]} {[%emt 00:00:46]} a5 {[%emt 00:02:43]} 12. Rad1
{[%clk 00:40:37]} {[%emt 00:01:58]} Be7 {[%clk 00:42:57]} {[%emt 00:01:36]} 13.
Rfe1 {[%clk 00:39:51]} {[%emt 00:00:57]} Be6 {[%emt 00:02:43]} 14. Ng5 {[%clk
00:30:51]} {[%emt 00:06:56]} Rh6 {[%clk 00:40:43]} {[%emt 00:02:04]} 15. Nxe6
{[%clk 00:29:31]} {[%emt 00:01:30]} Rxe6 {[%clk 00:40:51]} {[%emt 00:00:02]} 16.
g4 {[%clk 00:28:55]} {[%emt 00:00:47]} hxg4 {[%clk 00:39:44]} {[%emt 00:01:16]}
17. hxg4 {[%clk 00:29:04]} {[%emt 00:00:02]} Nh4 {[%clk 00:39:38]} {[%emt
00:00:16]} 18. Re4 {[%clk 00:28:11]} {[%emt 00:01:03]} Rd8 {[%clk 00:36:51]}
{[%emt 00:02:57]} 19. Rxd8+ {[%clk 00:27:21]} {[%emt 00:00:59]} Bxd8 {[%clk
00:37:00]} {[%emt 00:00:02]} 20. Bg3 {[%clk 00:26:25]} {[%emt 00:01:05]} c5
{[%clk 00:35:52]} {[%emt 00:01:18]} 21. Bxh4 {[%clk 00:21:44]} {[%emt
00:04:52]} Bxh4 {[%clk 00:35:50]} {[%emt 00:00:12]} 22. f4 {[%clk 00:21:36]}
{[%emt 00:00:18]} Bd8 {[%clk 00:34:35]} {[%emt 00:01:25]} 23. Kg2 {[%clk
00:19:09]} {[%emt 00:02:38]} Rh6 {[%clk 00:31:56]} {[%emt 00:02:47]} 24. Nd1
{[%clk 00:16:01]} {[%emt 00:03:18]} c6 {[%clk 00:21:23]} {[%emt 00:10:43]} 25.
Ne3 {[%clk 00:13:06]} {[%emt 00:03:05]} Kf8 {[%clk 00:17:27]} {[%emt 00:04:06]}
26. Nf5 {[%clk 00:12:51]} {[%emt 00:00:25]} Re6 {[%clk 00:17:29]} {[%emt
00:00:08]} 27. Re2 {[%clk 00:05:49]} {[%emt 00:07:12]} f6 {[%clk 00:14:31]}
{[%emt 00:03:08]} 28. Rd2 {[%clk 00:04:42]} {[%emt 00:01:17]} Be7 {[%clk
00:14:33]} {[%emt 00:00:08]} 29. Nxe7 {[%clk 00:03:03]} {[%emt 00:01:50]} Rxe7
{[%clk 00:14:01]} {[%emt 00:00:41]} 30. exf6 {[%clk 00:02:33]} {[%emt
00:00:41]} gxf6 {[%clk 00:14:09]} {[%emt 00:00:01]} 31. Kf3 {[%clk 00:02:34]}
{[%emt 00:00:10]} Re1 {[%clk 00:11:42]} {[%emt 00:02:37]} 32. Rd7 {[%clk
00:02:27]} {[%emt 00:00:16]} b5 {[%clk 00:10:25]} {[%emt 00:01:26]} 33. Rd6
{[%clk 00:02:29]} {[%emt 00:00:09]} Ke7 {[%clk 00:09:20]} {[%emt 00:01:16]} 34.
Rxc6 {[%clk 00:02:36]} {[%emt 00:00:03]} Rb1 {[%clk 00:08:55]} {[%emt
00:00:35]} 35. b3 {[%clk 00:02:31]} {[%emt 00:00:15]} Rb2 {[%clk 00:08:08]}
{[%emt 00:00:56]} 36. Rxc5 {[%clk 00:02:32]} {[%emt 00:00:10]} Rxa2 {[%clk
00:08:16]} 37. Ke4 {[%clk 00:01:59]} {[%emt 00:00:44]} a4 {[%clk 00:07:22]}
{[%emt 00:01:04]} 38. Kf5 {[%clk 00:01:40]} {[%emt 00:00:29]} a3 {[%clk
00:05:50]} {[%emt 00:01:42]} 39. Rxb5 {[%clk 00:01:44]} {[%emt 00:00:05]} Rxc2
{[%clk 00:02:04]} {[%emt 00:03:56]} 40. Rb7+ {[%clk 00:01:50]} {[%emt
00:00:04]} Kd6 {[%clk 00:01:15]} {[%emt 00:00:59]} 41. Ra7 {[%clk 00:01:57]}
{[%emt 00:00:03]} a2 {[%clk 00:01:24]} {[%emt 00:00:01]} 42. Kxf6 {[%clk
00:01:53]} {[%emt 00:00:14]} Kc6 {[%clk 00:01:16]} {[%emt 00:00:18]} 43. Ra4
{[%clk 00:01:11]} {[%emt 00:00:52]} Kb5 {[%clk 00:01:20]} {[%emt 00:00:06]} 44.
Kg5 {[%clk 00:01:09]} {[%emt 00:00:13]} Kc6 {[%clk 00:00:17]} {[%emt 00:01:12]}
45. f5 {[%clk 00:01:05]} {[%emt 00:00:15]} Rg2 {[%clk 00:00:24]} {[%emt
00:00:02]} 46. Kf6 {[%clk 00:01:07]} {[%emt 00:00:08]} Rxg4 {[%clk 00:00:27]}
{[%emt 00:00:07]} 47. Rxa2 {[%clk 00:01:16]} {[%emt 00:00:02]} Kd7 {[%clk
00:00:19]} {[%emt 00:00:18]} 48. Kf7 {[%clk 00:01:23]} {[%emt 00:00:02]} Kd6
{[%clk 00:00:22]} {[%emt 00:00:07]} 49. f6 {[%clk 00:01:30]} {[%emt 00:00:04]}
Rb4 {[%clk 00:00:30]} {[%emt 00:00:01]} 50. Rd2+ {[%clk 00:01:13]} {[%emt
00:00:27]} Kc7 {[%clk 00:00:14]} {[%emt 00:00:26]} 51. Rd3 {[%clk 00:01:19]}
{[%emt 00:00:04]} Rg4 {[%clk 00:00:16]} {[%emt 00:00:09]} 52. Kf8 {[%clk
00:01:25]} {[%emt 00:00:04]} 1-0

[Event "World Women Teams  Championship"]
[Site "Sitges, Spain"]
[Date "2021.09.28"]
[Round "4.6"]
[White "Saduakassova, Dinara"]
[Black "Muzychuk, Mariya"]
[Result "1/2-1/2"]
[TimeControl "40+10"]
[WhiteElo "2429"]
[BlackElo "2496"]

1. d4 d5 2. Nf3 {[%clk 00:45:09]} Nf6 {[%clk 00:45:21]} {[%emt 00:12:53]} 3.
Bf4 {[%clk 00:45:20]} Bf5 {[%clk 00:45:13]} {[%emt 00:00:20]} 4. c4 {[%clk
00:45:11]} e6 {[%clk 00:40:26]} {[%emt 00:02:33]} 5. Qb3 {[%clk 00:32:27]}
{[%emt 00:14:24]} Nc6 {[%clk 00:38:24]} 6. e3 {[%clk 00:32:27]} Nb4 {[%clk
00:38:24]} 7. Na3 {[%clk 00:32:27]} c6 {[%clk 00:38:24]} 8. Be2 {[%clk
00:32:27]} dxc4 {[%clk 00:38:24]} 9. Bxc4 {[%clk 00:32:27]} Bd6 {[%clk
00:38:24]} 10. O-O {[%clk 00:32:27]} O-O {[%clk 00:38:24]} 11. Be5 {[%clk
00:32:27]} Ne4 {[%clk 00:38:24]} 12. Be2 {[%clk 00:32:27]} a5 {[%clk 00:38:24]}
13. Nc4 {[%clk 00:32:27]} a4 {[%clk 00:38:24]} 14. Qd1 {[%clk 00:32:27]} Bxe5
{[%clk 00:38:24]} 15. Nfxe5 {[%clk 00:32:27]} f6 {[%clk 00:38:24]} 16. Nd3
{[%clk 00:32:27]} Nxd3 {[%clk 00:38:24]} 17. Bxd3 {[%clk 00:32:27]} b5 {[%clk
00:38:24]} 18. f3 {[%emt 00:43:06]} Ng5 {[%emt 00:00:18]} 19. Na3 {[%emt
00:01:36]} Rc8 {[%emt 00:02:51]} 20. Nc2 {[%emt 00:02:48]} Bxd3 {[%clk
00:12:57]} {[%emt 00:00:11]} 21. Qxd3 {[%emt 00:00:15]} e5 {[%emt 00:01:13]} 22.
Rfd1 {[%clk 00:14:22]} {[%emt 00:00:04]} Nf7 {[%emt 00:06:18]} 23. Nb4 {[%emt
00:01:13]} exd4 {[%emt 00:00:09]} 24. exd4 {[%clk 00:08:03]} {[%emt 00:00:24]}
Qd6 {[%clk 00:08:23]} {[%emt 00:03:44]} 25. a3 {[%emt 00:01:21]} c5 {[%clk
00:07:18]} {[%emt 00:00:51]} 26. dxc5 Qxc5+ {[%clk 00:07:26]} 27. Qd4 {[%clk
00:07:20]} Ne5 {[%clk 00:06:27]} {[%emt 00:01:09]} 28. Qxc5 {[%clk 00:05:26]}
{[%emt 00:02:04]} Rxc5 {[%clk 00:06:36]} 29. b3 {[%clk 00:04:38]} {[%emt
00:00:59]} Ra8 {[%clk 00:04:43]} {[%emt 00:02:03]} 30. bxa4 {[%clk 00:03:59]}
{[%emt 00:00:49]} Rxa4 {[%clk 00:04:47]} {[%emt 00:00:06]} 31. Nd3 {[%clk
00:03:04]} {[%emt 00:01:05]} Nxd3 {[%clk 00:04:07]} {[%emt 00:00:50]} 32. Rxd3
{[%clk 00:03:12]} {[%emt 00:00:02]} b4 {[%clk 00:04:08]} {[%emt 00:00:09]} 33.
Kf2 {[%clk 00:01:42]} {[%emt 00:01:41]} Rca5 {[%clk 00:03:48]} {[%emt
00:00:29]} 34. axb4 {[%clk 00:01:38]} {[%emt 00:00:14]} Rxa1 {[%clk 00:03:13]}
{[%emt 00:00:45]} 35. bxa5 {[%clk 00:01:45]} {[%emt 00:00:02]} Rxa5 {[%clk
00:03:22]} {[%emt 00:00:01]} 36. Rd7 {[%clk 00:01:53]} {[%emt 00:00:03]}
1/2-1/2